bitfinex/quotes_BTCUSD_20250314
["timestamp","ask_amount","ask_price","bid_price","bid_amount"]
[1741965325051,0.236669,84507.0,84504.0,0.388554]
[1741965325257,0.011833,84507.0,84504.0,0.15188]
[1741965325460,0.236672,84506.0,84504.0,0.15188]
[1741965325900,0.011833,84509.0,84504.0,0.15188]
[1741965326101,0.248499,84509.0,84505.0,0.236671]
[1741965326309,0.011831,84518.0,84510.0,0.236657]
[1741965326514,0.236653,84512.0,84504.0,0.15188]
[1741965326824,0.248484,84513.0,84510.0,0.236658]
[1741965327134,0.011831,84517.0,84513.0,0.236647]
[1741965327135,0.24847,84517.0,84513.0,0.236647]
[1741965327341,0.01856114,84521.0,84508.0,0.011833]
[1741965327546,0.012169,84524.0,84509.0,0.00059164]
[1741965327749,0.011831,84523.0,84509.0,0.01242464]
[1741965327956,0.236629,84521.0,84518.0,0.236635]
[1741965328186,0.248461,84520.0,84513.0,0.236648]
[1741965328387,0.011833,84509.0,84497.0,0.011834]
[1741965328587,0.23666,84510.0,84498.0,0.248524]
[1741965328820,0.23666,84510.0,84508.0,0.02398182]
[1741965329023,0.248478,84515.0,84509.0,1.73666]
[1741965329172,0.236652,84514.0,84509.0,1.5]
[1741965329386,0.011832,84514.0,84510.0,0.236657]
[1741965329590,0.236652,84513.0,84510.0,0.236657]
[1741965329767,0.236652,84513.0,84511.0,0.236654]
[1741965329964,0.236652,84513.0,84510.0,0.236657]
[1741965330168,0.236652,84512.0,84509.0,1.5]
[1741965330372,0.236652,84512.0,84509.0,1.736658]
[1741965330575,0.248484,84514.0,84510.0,0.236657]
[1741965330796,0.23665,84513.0,84510.0,0.236656]
[1741965331014,0.011832,84512.0,84509.0,1.5]
[1741965331231,0.236658,84510.0,84509.0,1.5]
[1741965331379,0.24849,84510.0,84509.0,1.5]
[1741965331811,0.24849,84510.0,84509.0,1.65068]
[1741965332810,0.236658,84510.0,84509.0,1.65068]
[1741965332994,0.011832,84514.0,84509.0,1.65068]
[1741965332995,0.000339,84524.0,84514.0,0.236644]
[1741965333207,0.2552048,84516.0,84509.0,1.65068]
[1741965333584,0.236645,84515.0,84512.0,0.236652]
[1741965333787,0.236647,84514.0,84511.0,0.23665]
[1741965333988,0.2670338,84516.0,84512.0,0.236651]
[1741965334396,0.2670338,84516.0,84512.0,0.236652]
[1741965334528,0.2670338,84516.0,84509.0,1.65068]
[1741965334529,0.011832,84515.0,84510.0,0.236656]
[1741965334748,0.236644,84516.0,84513.0,0.236649]
[1741965334979,0.2368045,84520.0,84517.0,0.236636]
[1741965335170,0.0001695,84520.0,84514.0,0.236645]
[1741965335372,0.236648,84514.0,84510.0,0.236656]
[1741965335533,0.011832,84516.0,84511.0,0.236655]
[1741965335934,0.236644,84515.0,84511.0,0.236655]
[1741965336137,0.236641,84516.0,84512.0,0.236651]
[1741965336350,0.011832,84515.0,84510.0,0.236656]
[1741965336572,0.24849,84510.0,84509.0,1.5]
[1741965336774,0.24849,84510.0,84509.0,1.64996]
[1741965337016,0.24849,84510.0,84508.0,0.000339]
[1741965337022,0.248494,84509.0,84508.0,0.000339]
[1741965338323,0.25404734,84509.0,84508.0,0.000339]
[1741965338731,0.25404734,84509.0,84500.0,8.2e-07]
[1741965338732,0.248517,84501.0,84500.0,8.2e-07]
[1741965339166,0.75488873,84501.0,84500.0,8.2e-07]
[1741965339368,0.248575,84481.0,84480.0,0.10443397]
[1741965340000,0.248575,84481.0,84480.0,9.7e-07]
[1741965340392,0.38047173,84483.0,84464.0,0.2369555]
[1741965340393,0.236781,84467.0,84464.0,0.2369555]
[1741965340581,0.011834,84498.0,84483.0,0.236734]
[1741965340802,0.01449626,84501.0,84486.0,0.011836]
[1741965340972,0.01449626,84501.0,84499.0,0.236686]
[1741965341189,0.01449626,84501.0,84500.0,0.15028]
[1741965341588,0.0146199,84501.0,84500.0,0.15028]
[1741965341794,0.00012364,84501.0,84500.0,0.151]
[1741965342376,0.00012364,84501.0,84500.0,0.17431269]
[1741965342605,0.236658,84510.0,84500.0,0.17431269]
[1741965342808,0.236658,84510.0,84505.0,0.23667]
[1741965343009,0.236662,84509.0,84505.0,0.23667]
[1741965343208,0.011833,84506.0,84505.0,0.02343319]
[1741965343478,0.011835,84492.0,84486.0,0.236724]
[1741965343678,0.011834,84500.0,84486.0,0.236724]
[1741965343679,0.011834,84500.0,84496.0,0.02350671]
[1741965344006,0.011833,84503.0,84498.0,0.23669]
[1741965344207,0.236689,84499.0,84496.0,0.01389268]
[1741965344412,0.23668,84502.0,84498.0,0.236691]
[1741965344622,0.23668,84502.0,84492.0,0.00012364]
[1741965344623,0.236675,84504.0,84500.0,0.236685]
[1741965344854,0.236695,84497.0,84492.0,0.00012364]
[1741965345102,0.236691,84498.0,84496.0,0.01415613]
[1741965345346,0.2367,84495.0,84493.0,0.15084]
[1741965345584,0.2367,84495.0,84494.0,0.15128]
[1741965346009,0.248532,84496.0,84494.0,0.15128]
[1741965346209,0.011834,84499.0,84494.0,0.15128]
[1741965346428,0.011834,84501.0,84494.0,0.15128]
[1741965346636,0.236695,84497.0,84494.0,0.15128]
[1741965346803,0.236699,84496.0,84494.0,0.15128]
[1741965347119,0.236687,84500.0,84495.0,0.2367]
[1741965347333,0.011834,84500.0,84494.0,0.387981]
[1741965347541,0.01856216,84505.0,84496.0,0.02637485]
[1741965347753,0.01856216,84505.0,84503.0,0.236676]
[1741965348159,0.011833,84507.0,84494.0,0.15128]
[1741965348364,0.24854,84493.0,84480.0,0.0003388]
[1741965348497,0.24854,84493.0,84491.0,0.17530218]
[1741965348692,0.24854,84493.0,84491.0,0.151]
[1741965348898,0.24854,84493.0,84486.0,0.151]
[1741965349300,0.011834,84496.0,84486.0,0.151]
[1741965349502,0.011834,84498.0,84486.0,0.151]
[1741965349503,0.248538,84494.0,84487.0,0.25126185]
[1741965349743,0.011835,84493.0,84487.0,0.01454085]
[1741965349953,0.011835,84493.0,84486.0,0.151]
[1741965350210,0.011835,84493.0,84486.0,0.387724]
[1741965350401,0.011835,84493.0,84485.0,1.5]
[1741965350402,0.011835,84493.0,84492.0,0.15104364]
[1741965351803,0.011835,84493.0,84492.0,0.00012364]
[1741965351999,0.236703,84495.0,84492.0,0.00012364]
[1741965352199,0.03039958,84493.0,84492.0,0.00012364]
[1741965353375,0.0775791,84493.0,84492.0,0.00012364]
[1741965353576,0.07609958,84493.0,84492.0,0.00012364]
[1741965354124,0.05253279,84493.0,84492.0,0.00012364]
[1741965354333,0.05565798,84493.0,84492.0,0.00012364]
[1741965354792,0.0370934,84493.0,84492.0,0.00012364]
[1741965355441,0.01496019,84493.0,84492.0,0.23683164]
[1741965355856,0.25166519,84493.0,84492.0,0.00012364]
[1741965356139,0.26350019,84493.0,84492.0,0.00012364]
[1741965356266,0.26350019,84493.0,84492.0,0.15072364]
[1741965356468,0.24854,84493.0,84492.0,0.00012364]
[1741965356711,0.29654,84493.0,84492.0,0.00012364]
[1741965357071,0.37916643,84493.0,84492.0,6.4e-07]
[1741965357292,0.29654,84493.0,84492.0,6.4e-07]
[1741965357488,0.29654,84493.0,84492.0,0.00033964]
[1741965358804,0.31866165,84493.0,84492.0,0.00033964]
[1741965359169,0.3372294,84493.0,84492.0,0.00033964]
[1741965359603,0.34281186,84493.0,84492.0,0.00033964]
[1741965360897,0.34281186,84493.0,84492.0,6.4e-07]
[1741965361826,1.07328359,84493.0,84492.0,6.4e-07]
[1741965362103,0.248575,84481.0,84480.0,4.4e-07]
[1741965362334,0.62904673,84481.0,84480.0,4.4e-07]
[1741965362887,0.6476168,84481.0,84480.0,4.4e-07]
[1741965363485,0.01443991,84493.0,84492.0,0.236708]
[1741965363729,0.01443991,84493.0,84480.0,4.4e-07]
[1741965363730,0.011835,84491.0,84486.0,0.1509927]
[1741965364092,0.248558,84487.0,84486.0,0.1504]
[1741965364471,0.236717,84489.0,84486.0,0.1504]
[1741965364767,0.23672,84488.0,84486.0,0.1504]
[1741965364983,0.23671,84492.0,84487.0,0.236722]
[1741965365189,0.00012364,84493.0,84492.0,0.236708]
[1741965365345,0.00012364,84493.0,84492.0,0.23730043]
[1741965365546,0.00012364,84493.0,84492.0,0.236708]
[1741965366171,0.00012364,84493.0,84491.0,0.236711]
[1741965366376,0.00012364,84493.0,84492.0,0.236708]
[1741965366782,0.0001695,84501.0,84500.0,0.26306085]
[1741965366979,0.236636,84518.0,84512.0,0.236652]
[1741965367160,0.2368005,84520.0,84512.0,0.387172]
[1741965367360,0.0001695,84520.0,84512.0,0.387172]
[1741965367566,0.0001695,84520.0,84515.0,0.236642]
[1741965367878,0.23692521,84520.0,84512.0,0.387171]
[1741965368088,0.248471,84517.0,84513.0,0.236648]
[1741965368282,0.248471,84517.0,84512.0,0.387171]
[1741965368283,0.236634,84519.0,84515.0,0.236643]
[1741965368445,0.236633,84519.0,84515.0,0.236642]
[1741965368655,0.236633,84519.0,84515.0,0.236602]
[1741965368855,0.236639,84517.0,84512.0,0.16408966]
[1741965369060,0.011832,84514.0,84513.0,1.5]
[1741965369658,0.236645,84515.0,84513.0,1.52313808]
[1741965369990,0.00029321,84520.0,84518.0,0.236635]
[1741965370401,0.00029321,84520.0,84513.0,0.03497008]
[1741965370402,0.000339,84530.0,84526.0,0.236613]
[1741965370613,0.0001696,84546.0,84538.0,0.01454085]
[1741965370823,0.011828,84540.0,84538.0,0.15056]
[1741965371038,0.0119975,84539.0,84538.0,0.15056]
[1741965371456,0.0001695,84539.0,84538.0,0.15056]
[1741965372646,0.0001695,84539.0,84538.0,0.90204]
[1741965372847,0.236477,84575.0,84548.0,0.26291985]
[1741965373082,0.011824,84572.0,84563.0,0.236509]
[1741965373208,0.011824,84572.0,84559.0,0.23652]
[1741965373209,0.00045252,84573.0,84572.0,0.236444]
[1741965373430,0.011824,84569.0,84564.0,0.15068]
[1741965373633,0.01227652,84573.0,84567.0,0.236498]
[1741965373837,0.00045252,84573.0,84572.0,0.248308]
[1741965374018,0.00045252,84573.0,84572.0,1.25604388]
[1741965374230,0.0001694,84586.0,84585.0,0.236448]
[1741965374433,0.0001694,84586.0,84585.0,0.40178885]
[1741965374654,0.0001694,84586.0,84585.0,0.41361085]
[1741965374655,0.0002931,84586.0,84585.0,0.41361085]
[1741965375071,0.0002931,84586.0,84585.0,0.53318588]
[1741965375492,4e-05,84600.0,84599.0,0.236409]
[1741965375853,4e-05,84600.0,84590.0,0.23539144]
[1741965375854,4e-05,84600.0,84585.0,0.11957503]
[1741965376056,0.011821,84594.0,84580.0,0.011823]
[1741965376214,0.011822,84588.0,84582.0,0.01454085]
[1741965376415,0.011823,84580.0,84566.0,0.236496]
[1741965376696,0.011823,84580.0,84555.0,0.0802]
[1741965376697,0.011822,84586.0,84577.0,0.0001237]
[1741965376884,0.011821,84592.0,84583.0,0.236454]
[1741965377089,0.011821,84592.0,84578.0,0.163223]
[1741965377090,4e-05,84600.0,84590.0,0.011821]
[1741965377254,4e-05,84600.0,84590.0,0.23539144]
[1741965377456,0.236418,84596.0,84590.0,0.236432]
[1741965377672,0.236418,84596.0,84587.0,0.236442]
[1741965377673,0.011821,84595.0,84591.0,0.15128]
[1741965377850,0.248249,84592.0,84591.0,0.15128]
[1741965378246,4e-05,84592.0,84591.0,0.15128]
[1741965379169,4e-05,84592.0,84591.0,0.163101]
[1741965379370,0.011821,84592.0,84591.0,0.15128]
[1741965379571,0.011821,84592.0,84578.0,0.00891621]
[1741965379572,0.011822,84581.0,84578.0,0.00891621]
[1741965379757,0.248282,84581.0,84579.0,0.15108]
[1741965380165,0.248282,84581.0,84565.0,0.342724]
[1741965380166,0.248291,84578.0,84575.0,0.15108]
[1741965380386,0.248286,84580.0,84575.0,0.15108]
[1741965380534,0.011823,84578.0,84575.0,0.15108]
[1741965381103,0.248282,84581.0,84575.0,0.387554]
[1741965381321,0.236467,84579.0,84575.0,0.15108]
[1741965381531,0.0185451,84582.0,84575.0,0.15108]
[1741965381990,0.011823,84578.0,84575.0,0.15108]
[1741965382360,0.01330099,84578.0,84575.0,0.15108]
[1741965382561,0.011823,84578.0,84572.0,0.02348022]
[1741965382763,0.011823,84578.0,84575.0,0.15068]
[1741965382967,0.011823,84578.0,84570.0,0.15064]
[1741965383402,0.01330111,84578.0,84554.0,0.236534]
[1741965383732,0.01330111,84578.0,84564.0,0.15064]
[1741965383851,0.01330111,84578.0,84559.0,0.02390651]
[1741965384305,0.011823,84578.0,84560.0,0.236516]
[1741965384651,0.0133012,84578.0,84550.0,0.75088]
[1741965384858,0.0133012,84578.0,84562.0,0.15048]
[1741965385358,0.011823,84578.0,84562.0,0.15048]
[1741965385702,0.011863,84578.0,84567.0,0.236497]
[1741965385904,0.011863,84578.0,84562.0,0.15048]
[1741965386335,0.011863,84578.0,84562.0,0.386992]
[1741965386482,0.011863,84578.0,84562.0,0.386991]
[1741965386690,0.01334116,84578.0,84562.0,0.15048]
[1741965386891,0.01334116,84578.0,84561.0,0.02355811]
[1741965387348,0.01334116,84578.0,84560.0,0.15036]
[1741965387544,0.011863,84578.0,84560.0,0.15036]
[1741965388011,0.011863,84578.0,84569.0,0.236491]
[1741965388172,0.03041113,84578.0,84569.0,0.386851]
[1741965388564,0.01858813,84578.0,84574.0,0.011823]
[1741965388818,0.01858813,84578.0,84576.0,0.23647]
[1741965389028,0.01858813,84578.0,84577.0,1.5001237]
[1741965389364,4e-05,84578.0,84577.0,1.5001237]
[1741965389608,4e-05,84578.0,84577.0,1.51371399]
[1741965389808,4e-05,84578.0,84577.0,1.52553699]
[1741965390334,4e-05,84578.0,84577.0,1.51371399]
[1741965390622,4e-05,84578.0,84577.0,1.53772911]
[1741965390912,4e-05,84578.0,84577.0,0.0001237]
[1741965390913,0.011863,84578.0,84577.0,0.0001237]
[1741965391185,0.0133412,84578.0,84577.0,0.0001237]
[1741965391435,0.03040973,84578.0,84577.0,0.0001237]
[1741965391955,0.26687773,84578.0,84577.0,0.0001237]
[1741965392438,0.01858673,84578.0,84577.0,0.0001237]
[1741965393176,4e-05,84578.0,84577.0,0.0001237]
[1741965393660,0.01854485,84588.0,84587.0,0.248264]
[1741965393875,0.0119903,84595.0,84589.0,0.236436]
[1741965394135,0.248259,84589.0,84587.0,0.75084]
[1741965394367,0.0001693,84595.0,84588.0,0.17376717]
[1741965394857,0.236426,84593.0,84590.0,0.236431]
[1741965395101,0.248244,84594.0,84590.0,0.236431]
[1741965395385,0.0001693,84595.0,84594.0,0.248244]
[1741965395616,0.0001693,84595.0,84594.0,0.26278485]
[1741965396383,0.0001693,84595.0,84594.0,0.68235988]
[1741965397084,3e-07,84595.0,84594.0,0.83323988]
[1741965398366,0.01853757,84630.0,84628.0,0.011816]
[1741965398609,0.237126,84629.0,84628.0,0.15088]
[1741965398865,0.011817,84620.0,84598.0,0.3]
[1741965399056,0.236356,84619.0,84615.0,0.02359111]
[1741965399241,0.236356,84619.0,84610.0,0.75068]
[1741965399242,0.011817,84617.0,84610.0,0.75068]
[1741965399480,0.236354,84619.0,84616.0,1.65104]
[1741965399704,0.236352,84620.0,84616.0,1.5]
[1741965399921,0.236352,84620.0,84617.0,0.15104]
[1741965400162,0.00012361,84623.0,84620.0,0.23635]
[1741965400393,0.00012361,84623.0,84621.0,0.236345]
[1741965400870,0.00012361,84623.0,84622.0,0.011817]
[1741965401184,0.00012361,84623.0,84622.0,0.01454085]
[1741965401410,0.00012361,84623.0,84621.0,0.00867163]
[1741965401626,0.00012361,84623.0,84621.0,0.236347]
[1741965402456,0.00012361,84623.0,84622.0,0.02635785]
[1741965402658,1e-08,84629.0,84628.0,0.011816]
[1741965402904,1e-08,84629.0,84628.0,0.236328]
[1741965403437,1e-08,84629.0,84628.0,0.38225988]
[1741965404435,0.236235,84662.0,84656.0,0.236249]
[1741965404651,0.236247,84657.0,84648.0,0.75048]
[1741965404903,0.00012356,84652.0,84651.0,0.236264]
[1741965405150,0.24808,84650.0,84649.0,0.02405382]
[1741965405631,0.23639056,84652.0,84649.0,0.17517382]
[1741965405843,0.00012356,84652.0,84649.0,0.17517382]
[1741965406060,0.011813,84650.0,84649.0,0.17517382]
[1741965409260,0.00016356,84652.0,84650.0,0.236265]
[1741965409450,0.236265,84651.0,84649.0,0.15116]
[1741965409680,0.00016356,84652.0,84649.0,0.15116]
[1741965409914,0.00016356,84652.0,84651.0,0.248077]
[1741965410034,0.00016356,84652.0,84651.0,0.236264]
[1741965410274,0.00016356,84652.0,84651.0,1.736264]
[1741965410500,0.236267,84650.0,84648.0,0.76432626]
[1741965410723,0.248082,84649.0,84648.0,0.76432626]
[1741965410966,0.00016356,84652.0,84648.0,0.91540626]
[1741965411394,0.236269,84649.0,84648.0,0.91540626]
[1741965411624,0.00016356,84652.0,84651.0,0.248077]
[1741965412070,0.00016356,84652.0,84651.0,0.236264]
[1741965412734,0.00016356,84652.0,84650.0,0.236266]
[1741965413225,0.00016356,84652.0,84648.0,0.75048]
[1741965413226,0.248082,84649.0,84648.0,0.75048]
[1741965413913,0.26161287,84649.0,84648.0,0.75048]
[1741965414350,0.243082,84649.0,84648.0,0.75048]
[1741965414820,0.248118,84637.0,84636.0,0.106221]
[1741965415067,0.248092,84646.0,84642.0,0.236288]
[1741965415296,0.236289,84642.0,84636.0,0.106221]
[1741965415534,0.2363,84638.0,84636.0,0.106221]
[1741965415774,0.248114,84640.0,84636.0,0.106221]
[1741965415979,0.011815,84638.0,84636.0,0.106221]
[1741965416184,0.011813,84651.0,84637.0,0.1518]
[1741965416563,0.236282,84645.0,84639.0,0.236297]
[1741965416779,0.236282,84645.0,84637.0,0.1518]
[1741965416780,0.2481,84643.0,84637.0,0.1518]
[1741965417019,0.011814,84643.0,84637.0,0.1518]
[1741965417247,0.236292,84641.0,84637.0,0.1518]
[1741965417473,0.236289,84642.0,84639.0,0.236297]
[1741965417687,0.0001692,84651.0,84647.0,0.236274]
[1741965418874,0.2364352,84651.0,84647.0,0.236274]
[1741965419098,0.0001692,84651.0,84648.0,1.5]
[1741965419987,0.236276,84647.0,84640.0,0.023707]
[1741965420195,0.0001692,84651.0,84648.0,0.236272]
[1741965420656,0.0001692,84651.0,84647.0,0.236273]
[1741965421151,0.0001692,84651.0,84647.0,0.248086]
[1741965421704,0.0001692,84651.0,84648.0,0.75016]
[1741965422149,0.2364144,84658.0,84648.0,0.75016]
[1741965422150,4e-05,84700.0,84684.0,0.011808]
[1741965422364,0.011807,84694.0,84693.0,0.01454085]
[1741965422586,0.00041204,84694.0,84688.0,0.0131996]
[1741965422809,0.00041204,84694.0,84693.0,0.011807]
[1741965423235,0.011807,84693.0,84691.0,0.02317622]
[1741965423447,0.00041204,84694.0,84692.0,0.236147]
[1741965423685,0.00041204,84694.0,84693.0,0.16986085]
[1741965423911,0.01221904,84694.0,84693.0,0.15532]
[1741965424141,0.011809,84681.0,84680.0,0.011805]
[1741965424369,0.247973,84687.0,84681.0,0.23618]
[1741965424583,0.247973,84687.0,84676.0,0.236191]
[1741965424584,0.011808,84683.0,84676.0,0.236191]
[1741965424808,0.011808,84687.0,84678.0,0.236186]
[1741965425016,0.236163,84688.0,84682.0,0.236177]
[1741965425448,0.011808,84688.0,84684.0,0.236171]
[1741965425688,0.011808,84688.0,84685.0,0.15548]
[1741965425889,0.24787197,84688.0,84685.0,0.15548]
[1741965426125,0.23616,84689.0,84685.0,0.15548]
[1741965426126,0.247964,84690.0,84685.0,0.15360333]
[1741965426341,0.011807,84690.0,84685.0,0.15360333]
[1741965426602,0.011807,84690.0,84685.0,0.38977133]
[1741965426845,0.247972,84687.0,84685.0,0.15360333]
[1741965427109,0.07111,84774.0,84671.0,0.75016]
[1741965427110,0.248012,84674.0,84671.0,0.75016]
[1741965427326,0.236234,84662.0,84661.0,0.15572]
[1741965427570,0.24807,84653.0,84652.0,0.035519]
[1741965427785,0.24807,84653.0,84651.0,0.15568]
[1741965427786,0.011813,84652.0,84651.0,0.15568]
[1741965428011,0.011813,84646.0,84636.0,0.035526]
[1741965428235,0.011814,84640.0,84639.0,0.15564]
[1741965428451,0.248109,84640.0,84639.0,0.15564]
[1741965428659,0.248109,84640.0,84638.0,0.12982846]
[1741965428660,0.011814,84639.0,84638.0,0.12995202]
[1741965428801,0.236292,84641.0,84638.0,0.12995202]
[1741965429001,0.011814,84643.0,84638.0,0.00012356]
[1741965429223,0.011814,84639.0,84638.0,0.00012356]
[1741965431138,0.248103,84642.0,84638.0,0.00012356]
[1741965431365,0.0831,84675.0,84642.0,0.01454085]
[1741965431571,0.01181,84672.0,84658.0,0.01454085]
[1741965431789,0.236238,84661.0,84659.0,0.15604]
[1741965432038,0.011811,84660.0,84639.0,0.011814]
[1741965432293,0.011812,84654.0,84637.0,0.011815]
[1741965432522,0.011814,84642.0,84635.0,0.236307]
[1741965432727,0.011813,84648.0,84642.0,0.156]
[1741965432943,0.055,84677.0,84642.0,0.156]
[1741965432944,0.156,84686.0,84644.0,0.011814]
[1741965433192,0.01181,84668.0,84662.0,0.236233]
[1741965433408,0.248029,84668.0,84663.0,0.15596]
[1741965433618,0.248029,84668.0,84652.0,0.011813]
[1741965433619,0.01852988,84669.0,84666.0,0.236219]
[1741965433769,0.236213,84670.0,84667.0,0.15592]
[1741965433972,0.2362,84674.0,84667.0,0.15592]
[1741965433973,0.011808,84682.0,84676.0,0.236193]
[1741965434182,4e-05,84700.0,84676.0,0.236193]
[1741965434183,0.011806,84698.0,84687.0,0.236163]
[1741965434389,0.011848,84688.0,84687.0,0.15584]
[1741965434960,0.00045204,84688.0,84687.0,0.15584]
[1741965435182,0.00045204,84688.0,84678.0,0.02369421]
[1741965435183,0.236186,84679.0,84678.0,0.02369421]
[1741965435406,0.00045204,84688.0,84680.0,0.236183]
[1741965435634,0.236185,84680.0,84678.0,0.15628]
[1741965435855,0.236185,84680.0,84679.0,0.1564]
[1741965436055,0.247994,84680.0,84679.0,0.1564]
[1741965436225,0.247985,84683.0,84679.0,0.1564]
[1741965436388,0.236183,84680.0,84679.0,0.1564]
[1741965436588,0.247992,84680.0,84670.0,0.236207]
[1741965436792,0.011809,84681.0,84674.0,0.236199]
[1741965437002,0.011807,84689.0,84677.0,0.01454085]
[1741965437208,0.011808,84684.0,84673.0,0.15624]
[1741965437409,0.247971,84687.0,84674.0,0.01181]
[1741965437662,0.00049204,84688.0,84686.0,0.236166]
[1741965438267,0.00049204,84688.0,84687.0,0.02634885]
[1741965438457,0.00049204,84688.0,84687.0,0.01454085]
[1741965438616,0.00049204,84688.0,84686.0,0.236166]
[1741965439024,0.00049204,84688.0,84687.0,1.5]
[1741965439217,0.00049204,84688.0,84687.0,1.63411588]
[1741965439490,0.0001691,84694.0,84693.0,0.236147]
[1741965439696,4e-05,84700.0,84698.0,0.236133]
[1741965439868,4e-05,84700.0,84699.0,0.14592188]
[1741965440048,0.00016351,84700.0,84699.0,0.14592188]
[1741965440261,0.00016351,84700.0,84699.0,1.64592188]
[1741965440455,6.6e-07,84722.0,84713.0,0.011804]
[1741965440665,4e-05,84750.0,84723.0,0.247866]
[1741965440866,4e-05,84750.0,84736.0,0.02634185]
[1741965441078,4e-05,84750.0,84744.0,0.247804]
[1741965441281,4e-05,84750.0,84742.0,0.0118]
[1741965441282,0.0006,84749.0,84742.0,0.0118]
[1741965441629,0.00012378,84745.0,84743.0,0.18066711]
[1741965441752,0.00012378,84745.0,84743.0,0.17178085]
[1741965441953,0.00012378,84745.0,84744.0,0.01454085]
[1741965442155,0.00012378,84745.0,84743.0,0.17178085]
[1741965442362,0.00012378,84745.0,84744.0,0.01454085]
[1741965442583,0.00012378,84745.0,84744.0,0.37011988]
[1741965442789,0.00012378,84745.0,84744.0,0.38191988]
[1741965442991,0.061797,84763.0,84762.0,0.247751]
[1741965442992,0.05,84763.0,84762.0,0.247751]
[1741965443357,0.01850521,84787.0,84779.0,0.011795]
[1741965443562,0.0463,84844.0,84762.0,1.04143588]
[1741965443563,0.235756,84834.0,84799.0,0.247643]
[1741965443758,0.08191567,84804.0,84803.0,0.01454085]
[1741965443961,0.08191567,84804.0,84797.0,0.011792]
[1741965444099,0.00041262,84800.0,84799.0,0.56218385]
[1741965444295,0.05,84842.0,84815.0,0.552597]
[1741965444296,0.01092637,84816.0,84815.0,0.552597]
[1741965444499,0.05,84842.0,84825.0,0.01454085]
[1741965444704,0.235776,84827.0,84825.0,0.88387588]
[1741965444900,0.011791,84810.0,84809.0,0.01454085]
[1741965445262,0.01437832,84833.0,84816.0,0.01179]
[1741965445465,0.00259132,84833.0,84826.0,0.11957503]
[1741965445602,0.011787,84837.0,84830.0,0.3]
[1741965445805,0.235779,84825.0,84812.0,0.235815]
[1741965446031,0.011789,84823.0,84821.0,0.01454085]
[1741965446229,0.247565,84826.0,84821.0,0.01454085]
[1741965446230,0.011788,84829.0,84822.0,0.35536203]
[1741965446434,0.00115,84860.0,84838.0,0.02632785]
[1741965446778,0.011788,84827.0,84823.0,0.01454085]
[1741965446929,0.235765,84831.0,84825.0,0.01454085]
[1741965447135,0.235765,84831.0,84827.0,0.01454085]
[1741965447334,0.011787,84836.0,84829.0,0.01454085]
[1741965447335,0.247548,84832.0,84829.0,0.01454085]
[1741965447540,0.235728,84844.0,84831.0,0.01454085]
[1741965447750,0.011787,84839.0,84834.0,0.01454085]
[1741965447946,0.235743,84838.0,84835.0,0.11957503]
[1741965448147,0.05,84842.0,84836.0,0.01454085]
[1741965448349,0.05,84842.0,84840.0,0.01454085]
[1741965448548,0.05,84842.0,84841.0,0.36985088]
[1741965448776,0.05,84842.0,84841.0,0.36709603]
[1741965448973,0.05,84842.0,84841.0,0.38163688]
[1741965449541,0.05,84842.0,84841.0,1.88163688]
[1741965450864,4e-05,84850.0,84847.0,0.235718]
[1741965450865,0.84400652,84848.0,84847.0,0.235718]
[1741965451098,0.84400652,84848.0,84847.0,0.16324]
[1741965451294,0.85579152,84848.0,84847.0,0.16324]
[1741965451539,0.84400652,84848.0,84847.0,0.16324]
[1741965451851,0.84400652,84848.0,84847.0,0.29460003]
[1741965452079,0.84400652,84848.0,84847.0,0.28281503]
[1741965452633,0.84400652,84848.0,84847.0,0.16324]
[1741965452868,0.84400652,84848.0,84847.0,0.51817303]
[1741965453020,0.84400652,84848.0,84847.0,0.52995803]
[1741965453222,0.84390652,84848.0,84847.0,0.52995803]
[1741965453647,0.84390652,84848.0,84847.0,0.51817303]
[1741965454252,0.84390652,84848.0,84847.0,0.54330648]
[1741965454568,0.84390652,84848.0,84847.0,0.54286648]
[1741965455120,0.84640652,84848.0,84847.0,0.54286648]
[1741965455316,0.84640652,84848.0,84847.0,0.54326648]
[1741965455765,0.81097232,84848.0,84847.0,0.55780733]
[1741965456172,0.77553812,84848.0,84847.0,0.55780733]
[1741965456383,0.77553812,84848.0,84847.0,0.54326648]
[1741965456780,0.77553812,84848.0,84847.0,0.53148148]
[1741965456992,0.78732312,84848.0,84847.0,0.1626]
[1741965457166,0.77553812,84848.0,84847.0,0.1626]
[1741965457747,0.77553812,84848.0,84847.0,0.398318]
[1741965457881,0.77553812,84848.0,84842.0,0.01355999]
[1741965458087,0.77553812,84848.0,84844.0,0.235724]
[1741965458268,0.77553812,84848.0,84846.0,0.235719]
[1741965458470,0.77553812,84848.0,84847.0,0.11957503]
[1741965458740,0.77553812,84848.0,84846.0,0.235719]
[1741965458929,0.78732312,84848.0,84847.0,1.5]
[1741965459117,0.78732312,84848.0,84847.0,1.66236]
[1741965459305,0.77553812,84848.0,84847.0,0.16236]
[1741965459671,0.77553812,84848.0,84847.0,1.66236]
[1741965459891,0.77553812,84848.0,84847.0,1.5]
[1741965460096,0.77553812,84848.0,84847.0,1.79352003]
[1741965460316,0.77553812,84848.0,84847.0,1.78173503]
[1741965460519,0.77553812,84848.0,84847.0,1.79352003]
[1741965460750,0.77553812,84848.0,84847.0,1.78173503]
[1741965461316,0.77553812,84848.0,84847.0,1.78133503]
[1741965461736,0.77553812,84848.0,84847.0,1.66176]
[1741965461982,0.77553812,84848.0,84847.0,1.79312003]
[1741965462190,0.77553812,84848.0,84847.0,1.78133503]
[1741965462375,0.74010392,84848.0,84847.0,1.80746088]
[1741965462723,0.74010392,84848.0,84847.0,1.64590088]
[1741965462920,0.74010392,84848.0,84847.0,1.80742088]
[1741965463328,0.70467189,84848.0,84847.0,1.80742088]
[1741965464723,0.66923986,84848.0,84847.0,1.80742088]
[1741965465275,0.63380783,84848.0,84847.0,1.80742088]
[1741965465443,0.5983758,84848.0,84847.0,1.80742088]
[1741965465780,0.0001,84851.0,84847.0,1.80742088]
[1741965465781,0.0222655,84859.0,84855.0,0.011784]
[1741965466080,0.02238934,84859.0,84858.0,0.26201185]